Cogmind - Beta 9.6 @@@ ROGUE MODE // 2020.08.27 @ 11:59:19 Player: Cracklepappy Result: Destroyed by D-53 Grenadier with Mini Grenade Launcher Performance ------------- Evolutions (0) 0 Regions Visited (2) 400 Robots Destroyed (29) 145 Value Destroyed (612) 612 Prototype IDs (2) 40 Alien Tech Used (0) 0 Bonus (-6) -6 TOTAL SCORE: 1191 Bonus ------- Friendly Fire -6 Cogmind --------- Core Integrity 0/250 Matter 228/300 Energy 250/250 System Corruption 0% Temperature Cool (39) Movement Rolling (120) Ox2 Location -10/Mines Parts ------- > --- POWER (1) -------- Ion Engine > --- PROPULSION (2) --- Compact Wheel > --- UTILITY (2) ------ Large Storage Unit Large Storage Unit > --- WEAPON (2) ------- (None) > --- INVENTORY (16) --- Ion Engine Light Nuclear Core Aluminum Leg Aluminum Leg Compact Wheel Medium Battery (200) High-capacity Matter Pod (143) Sensor Array Signal Interpreter Improved Terrain Scanner Transport Network Coupler Power Shielding Mining Laser Peak State ------------ > --- POWER ------------ Light Nuclear Core > --- PROPULSION ------- Light Treads Light Treads > --- UTILITY ---------- Large Storage Unit Improved Terrain Scanner > --- WEAPON ----------- Particle Gun Light Assault Rifle > --- INVENTORY -------- Ion Engine Wheel Compact Wheel Compact Wheel Small Storage Unit Large Storage Unit Medium Battery Power Shielding Medium Laser Mining Laser [Rating: 12] Favorites ----------- Power Light Ion Engine Engine Light Ion Engine Power Core Light Nuclear Core Propulsion Light Treads Treads Light Treads Wheel Wheel Utility Large Storage Unit Device Improved Terrain Scanner Storage Large Storage Unit Weapon Light Assault Rifle Energy Gun Medium Laser Ballistic Gun Light Assault Rifle Launcher Grenade Launcher Special Weapon Mining Laser Build | -11 -10 -10 ------- Run | Scr Mat Min Slots Evolved . | . . . Power . | . . . Propulsion . | . . . Utility . | . . . Weapon . | . . . Parts Attached 30 | 7 13 10 Power 3 | 1 1 1 Engine 2 | 1 . 1 Core 1 | . 1 . Reactor . | . . . Propulsion 4 | 2 . 2 Treads 2 | 2 . . Leg . | . . . Wheel 2 | . . 2 Hover . | . . . Flight . | . . . Utility 4 | 2 2 . Device 1 | 1 . . Storage 3 | 1 2 . Processor . | . . . Hackware . | . . . Protection . | . . . Artifact . | . . . Weapon 19 | 2 10 7 Energy Gun 10 | 2 3 5 Energy Cannon . | . . . Ballistic Gun 5 | . 4 1 Ballistic Cannon . | . . . Launcher 1 | . . 1 Special Weapon 3 | . 3 . Impact Weapon . | . . . Slashing Weapon . | . . . Piercing Weapon . | . . . Special Melee Weapon . | . . . Unidentified Prototypes . | . . . Parts Lost 12 | . 1 11 Power 1 | . . 1 Propulsion 3 | . . 3 Utility . | . . . Weapon 8 | . 1 7 Highest Loss Streak 5 | . 1 5 Average Slot Usage (%) 98 | . 99 91 Engine 8 | . 7 12 Core 5 | . 6 . Treads 26 | . 28 16 Device 7 | . 8 . Storage 20 | . 19 28 Energy Gun 8 | . 9 8 Ballistic Gun 16 | . 16 18 Special Weapon 1 | . 2 . Naked Turns . | . . . Heaviest Build 42 | 11 39 42 Greatest Support 40 | 40 40 40 Greatest Overweight (x) 4 | . . 4 Average Overweight (x) . | . . . Largest Inventory Capacity 16 | 6 16 16 Average Capacity 11 | 5 11 16 Most Carried 16 | 6 16 16 Average Carried 10 | 4 11 15 Final Capacity 16 | 6 16 16 Final Carried 16 | 6 16 13 Class Distribution -------------------- 100% | Mutant Dominant Class ---------------- Mutant | -10/Materials Mutant | -10/Mines Resources | -11 -10 -10 ----------- Run | Scr Mat Min Matter Collected 622 | 270 259 93 Remotely . | . . . Salvage Created 871 | 179 586 106 Parts 55 | 9 38 8 Haulers Intercepted 1 | . 1 . Recyclers Shooed 2 | . 2 . Parts Field Recycled . | . . . Retrieved Matter . | . . . Parts Self-Destructed . | . . . Prevented . | . . . Kills | -11 -10 -10 ------- Run | Scr Mat Min Combat Hostiles Destroyed 18 | . 11 7 Guns 16 | . 11 5 AOE 2 | . . 2 Classes Destroyed 8 | 2 4 2 Tunneler 5 | 4 1 . Hauler 1 | . 1 . Recycler 2 | 1 1 . Watcher 3 | . 3 . Swarmer 3 | . 3 . Grunt 10 | . 8 2 Demolisher 1 | . . 1 Assembled 4 | . . 4 Best Kill Streak 4 | 4 3 3 Combat Bots Only 3 | . 3 3 Max Kills in Single Turn 2 | 1 2 2 Gunslinging . | . . . Exploded 2 | . . 2 Melee . | . . . Uniques/NPCs Destroyed . | . . . Combat | -11 -10 -10 -------- Run | Scr Mat Min Damage Taken 1382 | . 461 921 Core 272 | . 38 234 Absorbed by Shields . | . . . Core Remaining (%) 100 | 100 . . Volleys Fired 99 | 9 61 29 Largest 2 | 2 2 2 Hottest 150 | 90 150 105 Shots Fired 175 | 18 106 51 Gun 158 | 18 91 49 Cannon . | . . . Launcher 2 | . . 2 Special 15 | . 15 . Kinetic 91 | . 65 26 Thermal 82 | 18 41 23 Explosive 2 | . . 2 Electromagnetic . | . . . Robot Hit Streak 19 | 10 19 19 Robot Miss Streak 4 | 2 2 4 Penetration Max . | . . . Secondary Targets 1 | . . 1 Max Gunslinging Chain 1 | . . 1 Shots Hit Robots 113 | 14 64 35 Core Hits 59 | 6 34 19 Critical Hits . | . . . Critical Kills . | . . . Critical Parts Destroyed . | . . . Melee Attacks . | . . . Impact . | . . . Slashing . | . . . Piercing . | . . . Sneak Attacks . | . . . Combat Hostiles . | . . . Follow-up Attacks . | . . . Damage Inflicted 1673 | 179 895 599 Guns 1183 | 179 673 331 Cannons . | . . . Explosions 490 | . 222 268 Melee . | . . . Ramming . | . . . Kinetic 577 | . 399 178 Thermal 717 | 179 385 153 Explosive 268 | . . 268 Electromagnetic 111 | . 111 . Impact . | . . . Slashing . | . . . Piercing . | . . . Highest Corruption . | . . . Average Corruption . | . . . Corruption Purged . | . . . Overload Shots . | . . . Overflow Damage 19 | . 8 11 Projectiles . | . . . Explosions 19 | . 8 11 Melee . | . . . Knockbacks . | . . . Impact . | . . . Kinetic . | . . . Secondary . | . . . Self-Inflicted Damage 124 | . 51 73 Shots 3 | . 1 2 Rammed . | . . . Targets Rammed . | . . . Kicked . | . . . Crushed . | . . . Highest Temperature 319 | 60 157 319 Average Temperature 46 | 27 33 89 Received Heat Transfer 396 | . 207 189 Effects 2 | . . 2 Energy Bleed 1 | . . 1 Interference 1 | . . 1 Siege Activations . | . . . Robots Corrupted . | . . . Combat Hostiles . | . . . Parts Fried . | . . . Impact Corruptions . | . . . Robots Melted . | . . . Combat Hostiles . | . . . Parts Melted 1 | . 1 . Heat Transferred 1572 | 459 729 384 Parts Sabotaged . | . . . Parts Stolen . | . . . Parts Stripped . | . . . Power Chain Reactions . | . . . Missiles Intercepted . | . . . Alert | -11 -10 -10 ------- Run | Scr Mat Min Peak Influence 244 | 25 244 78 Average Influence 87 | 11 104 60 Maximum Alert Level 1 | . 1 . Low Security (%) 97 | 100 96 100 Level 1 2 | . 3 . Level 2 . | . . . Level 3 . | . . . Level 4 . | . . . Level 5 . | . . . High Security . | . . . Max Security . | . . . Squads Dispatched 3 | . 3 . Investigation 1 | . 1 . Extermination . | . . . Reinforcement 2 | . 2 . Assault . | . . . Garrison . | . . . Intercept . | . . . Construction Impeded . | . . . Haulers Reinforced . | . . . Stealth | -11 -10 -10 --------- Run | Scr Mat Min Distress Signals . | . . . Communications Jammed . | . . . Distress Signals . | . . . Times Spotted 38 | . 20 18 Peak Tracking Total 12 | . 3 12 Tactical Retreats 5 | . 2 3 Traps | -11 -10 -10 ------- Run | Scr Mat Min Traps Triggered . | . . . Indirectly . | . . . Trap Hack Attempts . | . . . Triggered . | . . . Disarmed . | . . . Reprogrammed . | . . . Reused . | . . . Traps Extracted . | . . . Installed . | . . . Triggered . | . . . Machines | -11 -10 -10 ---------- Run | Scr Mat Min Machines Disabled 4 | . 3 1 Max in Single Turn 2 | . 2 1 Machines Sabotaged . | . . . Garrisons Compromised . | . . . Overloaded Fab Kills . | . . . Fab Network Shutdowns . | . . . Hacking | -11 -10 -10 --------- Run | Scr Mat Min Machines Accessed 6 | . 6 . Terminals 5 | . 5 . Fabricators . | . . . Repair Stations . | . . . Recycling Units 1 | . 1 . Scanalyzers . | . . . Garrison Access . | . . . Total Hacks 16 | . 16 . Successful 8 | . 8 . Failed 8 | . 8 . Catastrophic 2 | . 2 . Database Lockouts . | . . . Manual 8 | . 8 . Terminals 13 | . 13 . Fabricators . | . . . Repair Stations . | . . . Recycling Units 3 | . 3 . Scanalyzers . | . . . Garrison Access . | . . . Terminal Hacks 6 | . 6 . Part Schematic 2 | . 2 . Prototype ID Bank 1 | . 1 . Recall Investigation 1 | . 1 . Registered Prototypes 1 | . 1 . Zone Layout 1 | . 1 . Fabricator Hacks . | . . . Repair Station Hacks . | . . . Recycling Unit Hacks 1 | . 1 . Report Inventory 1 | . 1 . Scanalyzer . | . . . Garrison Access Hacks . | . . . Unauthorized Hacks 1 | . 1 . Terminals . | . . . Fabricators . | . . . Repair Stations . | . . . Recycling Units 1 | . 1 . Tunnel 1 | . 1 . Scanalyzers . | . . . Garrison Access . | . . . Data Cores Recovered . | . . . Used . | . . . Hacking Detections 6 | . 6 . Full Trace Events . | . . . Feedback Events . | . . . Feedback Blocked . | . . . Robot Schematics Acquired . | . . . Robots Built . | . . . Matter . | . . . Time . | . . . Total Robot Build Rating . | . . . Part Schematics Acquired 1 | . 1 . Parts Built . | . . . Matter . | . . . Time . | . . . Total Part Build Rating . | . . . Parts Repaired . | . . . Time . | . . . Parts Recycled . | . . . Recycled Matter . | . . . Retrieved Matter . | . . . Retrieved Components . | . . . Parts Scanalyzed . | . . . Part Schematics Acquired . | . . . Parts Damaged . | . . . Bothacking | -11 -10 -10 ------------ Run | Scr Mat Min Used RIF Installer . | . . . Robots Hacked . | . . . Non-combat . | . . . Combat . | . . . Robot Hacks Applied . | . . . Relay Couplers Released . | . . . Robots Rewired . | . . . Allies Hacked . | . . . Hacks Repelled . | . . . Allies | -11 -10 -10 -------- Run | Scr Mat Min Total Allies . | . . . Largest Group . | . . . Highest-Rated Group . | . . . Highest-Rated Ally . | . . . Total Orders . | . . . Ally Attacks . | . . . Total Damage . | . . . Kills . | . . . Allies Corrupted . | . . . Allies Melted . | . . . Intel | -11 -10 -10 ------- Run | Scr Mat Min Robot Analysis Total . | . . . Derelict Logs Recovered 1 | . . 1 Drone Launches . | . . . Drone Recoveries . | . . . Exploration | -11 -10 -10 ------------- Run | Scr Mat Min Turns Passed 1895 | 205 1426 264 Spaces Moved 947 | 101 738 108 Core 3 | 3 . . Treads 910 | 98 738 74 Legs . | . . . Wheels 34 | . . 34 Hover . | . . . Flight . | . . . Fastest Speed 50 | 50 160 100 Average Speed 158 | 156 160 145 Slowest Speed 160 | 160 160 160 Overloaded Moves . | . . . Propulsion Burnouts . | . . . Robots Hopped . | . . . Cave-ins Triggered . | . . . Exploration Rate (%) 38 | 5 97 14 Regions Visited 2 Branch Regions 1 Pre-discovered Areas 1 | . 1 . Known Exits Taken . | . . . Unknown Exits Taken 2 | 1 1 . Scrap Searched . | . . . Spaces Dug 14 | . 14 . Terrain Destroyed 45 | . 37 8 Melee . | . . . Projectile 14 | . 14 . AOE 31 | . 23 8 Actions | -11 -10 -10 --------- Run | Scr Mat Min Total 1156 | 128 861 167 Wait 45 | 2 26 17 Move 945 | 100 737 108 Hop . | . . . Pick Up 28 | 9 16 3 Fast Attach 9 | 5 2 2 Attach 9 | 2 1 6 Detach . | . . . Swap 12 | . 10 2 Drop 9 | 1 8 . Fire 99 | 9 61 29 Melee . | . . . Ram . | . . . Kick . | . . . Crush . | . . . Escape Stasis . | . . . Rewire . | . . . Trap . | . . . Miscellaneous . | . . . Route ------- -11/Scrapyard -10/Materials (discovered 4 exits: [*Mat x3] / [*Min]) -10/Mines History --------- Turn | Location | Event 54 | -11/Scrapyard | Discovered new exit (range 16) 206 | -11/Scrapyard | Entered Materials 313 | -10/Materials | Build established: Mutant 377 | -10/Materials | Discovered new exit (range 8) 399 | -10/Materials | Discovered new exit (range 16) 558 | -10/Materials | Discovered new exit (range 4) 737 | -10/Materials | Discovered new exit (range 10) 1632 | -10/Materials | Entered Mines 1706 | -10/Mines | Learned 2 Materials zone layouts 1762 | -10/Mines | Assembled infested the area 1767 | -10/Mines | Assisted by a Guerilla fighting off Assembled 1811 | -10/Mines | Core integrity fell below 50% 1837 | -10/Mines | Lost 5 parts (2n3w) 1881 | -10/Mines | Core integrity fell below 20% 1896 | -10/Mines | Destroyed by D-53 Grenadier with Mini Grenade Launcher Last Messages --------------- 01793_ as-76484 destroyed. 01797_ HV Slug penetrates as-56419. 01797_ as-56419 suffers critical hit. 01797_ as-56419 destroyed. 01799_ Acquired Aluminum Leg. 01804_ Acquired Particle Gun. 01806_ Med. Laser destroyed. 01809_ Acquired Sml. Laser. 01822_ Destroyed Asb. Hover Unit. 01828_ Overheating: Energy bleed (-52). 01829_ Overheating: System interference. 01829_ Sml. Laser temporarily disabled. 01835_ as-22170 destroyed. 01876_ Lgt. Assault Rifle destroyed. 01876_ Particle Gun destroyed. 01880_ Wheel destroyed. 01880_ D-53 Grenadier destroyed. 01880_ Switching to secondary target: G-34 Mercenary. 01890_ Sml. Laser destroyed. 01893_ Med. Laser destroyed. Map ----- +----------------------------------------------------+ | ?????????????????????????????????? | | ?????????????????????????????????? | | ?????????????????????????????????? | | ?????????????????????????????????? | | ?????????????????????????????????? | | ?????????????????????????????????? | | ?????????????????????????????????? | | ?????????????????????????????????? | | ?????????????????????????????????? | | ?????????????????????????????????? | | ??????????????????? ?????????????? | | ??????????????????? ?????????????? | | ??????????????????? ?????????????? | | ??????????????????? ?????????????? | | ??????????????????# ?????????????? | | ?????????????????# ?????????????? | | ????????????????? ?????????????? | | ????????????????? ?????????????? | | ?????????????????# #?????????????? | | ?????????????????# #?????????????? | | ????????????????## #?????????????? | | ???????????????## #?????????????? | | ???????????????# ????????????? | | ???????????????# ???????????? | | ???????????????# ####??????? | | ???????????????# d@#??????? | | ????????## ###### % ### ###????? | | ? ##???? | | ????????####### # #???? | | ?????????????### ## "###?? | | ????????????## # #?? | | ????????????# # #?? | | ??????????### # " #?? | | ??????????#"! # " #?? | | #######"%%% "" #?? | | != g % *= #?? | | %* " " # #?? | | ######### """ ##########?? | | ????????????## """ ##??????????? | | ?????????????### ##??????????? | | ???????????????## #####??????? | | ????????????????#### ## #??????? | | ???????????????????## #??????? | | ????????????????????## ##??????? | | ?????????????????????#####???????? | | ?????????????????????????????????? | | ?????????????????????????????????? | | ?????????????????????????????????? | | ?????????????????????????????????? | | ?????????????????????????????????? | +----------------------------------------------------+ Best States ------------- Heat Dissipation 25 Energy Generation 14 Energy Capacity 250 Matter Stores 300 Matter Capacity 300 Sight Range 16 Terrain Scan Range 16 Terrain Scan Density 10 Evasion (%) 40 Recoil Reduction 2 Item Schematics ----------------- Hcp. Storage Unit | -10/Materials | Hacked Robot Schematics ------------------ None Fabricated ------------ Nothing Alien Tech Used ----------------- None Achievements -------------- None Challenges ------------ None Game ------ Seed RefineryAnalysisKatana Manual? 0 Play Time 00:15:46 Cumulative 139.5 hours Start 2020.08.27 @ 11:44:48 End 2020.08.27 @ 11:59:19 Sessions 1 Manual Loads 0 Difficulty Rogue Special Mode None Game No. 170 Rogue 170 Adventurer 0 Explorer 0 Win Type - Total 2 Types 2/0/0/0/0/0/0 Lore% 51 Gallery% 68 Achievement% 47 Wizard Run 0 Options --------- ASCII 0 Keyboard 0 Movement Numpad Keybinds 0 Fullscreen 2 Font 24/Smallcaps Map View 76x50 Tactical HUD 1 Map Filters NONE Filters NONE Steam 1 RUN: c2793ef1-aa63-4265-81d9-308c0ce961db